lending/lending_fUSD_20240128
["ID","MTS","AMOUNT","RATE_DAILY","PERIOD"]
[312940870,1706473841006,-785.3251218,0.00029,2]
[312940871,1706473841016,-785.3251218,0.00029,2]
[312940872,1706473841025,-785.3251218,0.00029,2]
[312940873,1706473841036,-785.3251218,0.00029,2]
[312940874,1706473841046,-785.3251218,0.00029,2]
[312940875,1706473841057,-191.68,0.00029128,2]
[312940876,1706473841066,-1215.01,0.00029196,2]
[312940877,1706473841075,-838.1604579,0.00029231,2]
[312940878,1706473841084,-191.68,0.0002956,2]
[312940879,1706473841093,-2287.81,0.00029572,2]
[312940880,1706473841102,-10000.0,0.00029719,2]
[312940881,1706473841111,-175.84884344,0.000298,2]
[312940882,1706473841120,-838.1604579,0.00029898,2]
[312940883,1706473841131,-191.68,0.00029993,2]
[312940884,1706473841141,-2997.32694636,0.0003,2]
[312940885,1706473841154,-1173.18926266,0.0003,2]
[312940886,1706473841165,-4359.87819354,0.0003,2]
[312940887,1706473841176,-1111.07355576,0.0003,2]
[312940888,1706473841185,-905.18762355,0.0003,4]
[312940889,1706473841194,-2253.96446361,0.0003,4]
[312940890,1706473841206,-615.575,0.0003,4]
[312940891,1706473841218,-1036.368,0.0003,4]
[312940892,1706473841229,-500.0,0.0003,4]
[312940893,1706473841240,-13046.07503937,0.0003,4]
[312940894,1706473841251,-492.6875681,0.0003,4]
[312940895,1706473841262,-944.4,0.0003,4]
[312940896,1706473841279,-291.33054083,0.0003,4]
[312940897,1706473841290,-4844.24927146,0.0003,4]
[312940898,1706473841301,-9368.0,0.0003,4]
[312940899,1706473841312,-602.41859576,0.0003,4]
[312940900,1706473841324,-4596.6796454,0.0003,4]
[312940901,1706473841335,-409.15032548,0.0003,4]
[312940902,1706473841346,-1272.99027368,0.0003,4]
[312940903,1706473841358,-8655.84196968,0.0003,4]
[312940904,1706473841370,-2791.0099997,0.0003,4]
[312940905,1706473841419,-339.24799551,0.0003,4]
[312940906,1706473841432,-1169.68200494,0.0003,4]
[312940907,1706473841441,-827.76799506,0.0003,2]
[312940908,1706473841454,-791.06807688,0.0003,2]
[312940909,1706473841463,-1618.83607194,0.0003,2]
[312940910,1706473841473,-780.52538779,0.0003,2]
[312940911,1706473841484,-838.31068415,0.0003,2]
[312940912,1706473841494,-1618.83607194,0.0003,2]
[312940913,1706473841503,-1618.83607194,0.0003,2]
[312940914,1706473841512,-1618.83607194,0.0003,2]
[312940915,1706473841521,-1618.83607194,0.0003,2]
[312940916,1706473841530,-1618.83607194,0.0003,2]
[312940917,1706473841540,-1618.83607194,0.0003,2]
[312940918,1706473841548,-1618.83607194,0.0003,2]
[312940919,1706473841557,-1618.83607194,0.0003,2]
[312940920,1706473841566,-165.95074033,0.0003,2]
[312940921,1706473841707,-508.58444147,0.0003,2]
[312940959,1706473843486,-944.30089014,0.0003,2]
[312940963,1706473843495,-1618.83607194,0.0003,2]
[312940967,1706473843505,-1618.83607194,0.0003,2]
[312940971,1706473843515,-1618.83607194,0.0003,2]
[312940975,1706473843524,-1618.83607194,0.0003,2]
[312940979,1706473843533,-1618.83607194,0.0003,2]
[312940983,1706473843542,-1618.83607194,0.0003,2]
[312940988,1706473843553,-1618.83607194,0.0003,2]
[312940992,1706473843562,-1618.83607194,0.0003,2]
[312940995,1706473843572,-252.0,0.00030078,2]
[312940999,1706473843581,-157.44,0.00030137,2]
[312941003,1706473843590,-1215.01,0.00030229,2]
[312941006,1706473843600,-191.68,0.00030425,2]
[312941009,1706473843609,-838.1604579,0.00030565,2]
[312941012,1706473843618,-16369.71,0.0003062,2]
[312941015,1706473843628,-296.0664491,0.00030742,2]
[312941017,1706473843637,-10000.0,0.00030743,2]
[312941019,1706473843646,-1000.0,0.00030779,2]
[312941021,1706473843654,-191.68,0.00030858,2]
[312941023,1706473843664,-326.08,0.00031069,2]
[312941025,1706473843673,-167.0,0.0003111,2]
[312941027,1706473843682,-2287.81,0.00031216,2]
[312941029,1706473843691,-838.1604579,0.00031231,2]
[312941031,1706473843701,-1215.01,0.00031261,2]
[312941032,1706473843710,-191.68,0.0003129,2]
[312941033,1706473843719,-152.67299836,0.00031623,2]
[312941034,1706473843728,-180.0,0.00031644,2]
[312941036,1706473843737,-686.73384488,0.00031645,5]
[312941038,1706473843746,-191.68,0.00031723,2]
[312941040,1706473843755,-167.54,0.00031766,2]
[312941041,1706473843764,-10000.0,0.00031767,2]
[312941044,1706473843773,-170.76,0.00031791,2]
[312941045,1706473843782,-838.1604579,0.00031898,2]
[312941046,1706473843791,-375.20474217,0.00032,2]
[312941047,1706473843801,-167.0,0.00032137,2]
[312941048,1706473843810,-191.68,0.00032156,2]
[312941049,1706473843819,-1215.01,0.00032294,2]
[312941050,1706473843828,-202.4125195,0.000325,2]
[312941051,1706473843837,-838.1604579,0.00032565,2]
[312941054,1706473843846,-191.68,0.00032588,2]
[312941055,1706473843855,-2287.81,0.0003286,2]
[312941057,1706473843865,-191.68,0.00033021,2]
[312941059,1706473843874,-167.0,0.00033164,2]
[312941060,1706473843884,-838.1604579,0.00033232,2]
[312941061,1706473843893,-1215.01,0.00033326,2]
[312941062,1706473843902,-326.08,0.00033333,2]
[312941063,1706473843911,-164.28,0.0003338,2]
[312941064,1706473843920,-191.68,0.00033453,2]
[312941065,1706473843929,-151.74,0.00033455,2]
[312941066,1706473843938,-160.35028919,0.00033552,4]
[312941067,1706473843947,-1000.0,0.00033578,2]
[312941068,1706473843957,-3195.29459253,0.00033598,2]
[312941069,1706473843966,-191.68,0.00033886,2]
[312941070,1706473843976,-838.1604579,0.00033899,2]
[312941071,1706473843985,-167.0,0.00034191,2]
[312941072,1706473843994,-191.68,0.00034318,2]
[312941073,1706473844003,-1215.01,0.00034359,2]
[312941074,1706473844013,-2287.81,0.00034504,2]
[312941075,1706473844022,-838.1604579,0.00034566,2]
[312941076,1706473844031,-152.67299828,0.00034643,2]
[312941077,1706473844040,-191.68,0.00034751,2]
[312941078,1706473844052,-530.4281316,0.000349,2]
[312941079,1706473844063,-530.42813157,0.000349,2]
[312941080,1706473844072,-7128.15522643,0.00034998,5]
[312941081,1706473844082,-4356.58302865,0.00034998,4]
[312941082,1706473844091,-1043.45173063,0.00034999,4]
[312941083,1706473844102,-155.0,0.00035,2]
[312941084,1706473844113,-5000.0,0.00035,3]
[312941085,1706473844121,-155.0,0.00035,2]
[312941086,1706473844132,-191.68,0.00035184,2]
[312941087,1706473844142,-203.0,0.000352,13]
[312941088,1706473844152,-167.0,0.00035218,2]
[312941089,1706473844162,-838.1604579,0.00035233,2]
[312941090,1706473844171,-1215.01,0.00035392,2]
[312941091,1706473844180,-326.08,0.00035597,2]
[312941092,1706473844189,-191.68,0.00035616,2]
[312941093,1706473844199,-151.74,0.00035685,2]
[312941094,1706473844209,-434.66039764,0.00035814,2]
[312941095,1706473844390,-838.1604579,0.00035899,2]
[312941096,1706473844400,-686.73384488,0.00036218,7]
[312941097,1706473844409,-167.0,0.00036245,2]
[312941098,1706473844418,-838.1604579,0.00036566,2]
[312941099,1706473844427,-5000.0,0.0003689,7]
[312941100,1706473844436,-200.0,0.0003689,2]
[312941101,1706473844445,-179.0,0.0003689,2]
[312941102,1706473844456,-155.0,0.00037,2]
[312941103,1706473844465,-3000.0,0.00037,2]
[312941104,1706473844474,-3000.0,0.00037,2]
[312941105,1706473844483,-3000.0,0.00037,2]
[312941106,1706473844492,-3000.0,0.00037,2]
[312941107,1706473844502,-3000.0,0.00037,2]
[312941108,1706473844511,-3000.0,0.00037,2]
[312941109,1706473844520,-3000.0,0.00037,2]
[312941110,1706473844530,-3000.0,0.00037,2]
[312941111,1706473844539,-3000.0,0.00037,2]
[312941112,1706473844548,-3000.0,0.00037,2]
[312941113,1706473844557,-3000.0,0.00037,2]
[312941114,1706473844566,-3000.0,0.00037,2]
[312941115,1706473844576,-3000.0,0.00037,2]
[312941116,1706473844585,-3000.0,0.00037,2]
[312941117,1706473844595,-3000.0,0.00037,2]
[312941118,1706473844604,-3000.0,0.00037,2]
[312941119,1706473844613,-3000.0,0.00037,2]
[312941120,1706473844622,-3000.0,0.00037,2]
[312941121,1706473844632,-3000.0,0.00037,2]
[312941122,1706473844641,-3000.0,0.00037,2]
[312941123,1706473844651,-6999.65,0.00037112,2]
[312941124,1706473844662,-487.57,0.00037116,2]
[312941125,1706473844671,-1200.00000013,0.00037511,12]
[312941126,1706473844681,-152.67299828,0.00037662,2]
[312941127,1706473844690,-530.42813157,0.00037675,2]
[312941128,1706473844699,-1306.77927712,0.00037698,4]
[312941129,1706473844709,-1000.0,0.00037698,4]
[312941130,1706473844718,-155.0,0.00037698,4]
[312941131,1706473844727,-21887.95991116,0.00037699,2]
[312941132,1706473844737,-1966.90599291,0.00037699,2]
[312941133,1706473844746,-5628.25619398,0.00037699,2]
[312941134,1706473844755,-200.0,0.00037699,2]
[312941135,1706473844765,-500.0,0.00037699,2]
[312941136,1706473844774,-155.0,0.00037699,4]
[312941137,1706473844783,-2000.0,0.00037699,2]
[312941138,1706473844792,-200.0,0.00037699,2]
[312941139,1706473844801,-3000.0,0.00037699,2]
[312941140,1706473844810,-152.71,0.000377,3]
[312941141,1706473844819,-152.71,0.000377,3]
[312941142,1706473844828,-152.71,0.000377,3]
[312941143,1706473844838,-152.71,0.000377,3]
[312941144,1706473844847,-152.71,0.000377,3]
[312941145,1706473844857,-152.71,0.000377,3]
[312941146,1706473844866,-152.71,0.000377,3]
[312941147,1706473844876,-152.71,0.000377,3]
[312941148,1706473844885,-152.71,0.000377,3]
[312941149,1706473844894,-152.71,0.000377,3]
[312941150,1706473844903,-152.71,0.000377,3]
[312941151,1706473844912,-1000.0,0.00037709,2]
[312941152,1706473844923,-977.78754773,0.000378,11]
[312941153,1706473844932,-5000.0,0.000378,3]
[312941154,1706473844942,-326.08,0.00037861,2]
[312941155,1706473844953,-3646.11833094,0.0003788,2]
[312941156,1706473844962,-1501.2118224,0.0003789,2]
[312941157,1706473844971,-3148.07165878,0.0003789,2]
[312941158,1706473844981,-3807.21916671,0.0003789,2]
[312941159,1706473844990,-241.01623879,0.0003789,2]
[312941160,1706473844999,-1174.34,0.00037891,2]
[312941161,1706473845008,-204.77961318,0.00037898,4]
[312941162,1706473845017,-167.62736161,0.000379,2]
[312941163,1706473845026,-120317.36327499,0.000379,3]
[312941164,1706473845042,-354303.57488401,0.000379,3]
[312941165,1706473845052,-151.74,0.00037916,2]
[312941166,1706473845064,-760.33892735,0.0003797,2]
[312941167,1706473845074,-2495.4127214,0.00037974,2]
[312941168,1706473845083,-164.7076763,0.00037974,2]
[312941169,1706473845092,-158206.979386,0.0003798,3]
[312941170,1706473845102,-225.2151842,0.0003799,7]
[312941171,1706473845111,-760.33892735,0.0003799,2]
[312941172,1706473845120,-160.47864285,0.00037999,2]
[312941173,1706473845130,-214.46902772,0.00037999,2]
[312941174,1706473845140,-116114.70183844,0.00038,2]
[312941175,1706473845157,-850.3506959,0.00038,2]
[312941176,1706473845168,-8000.0,0.00038,2]
[312941177,1706473845183,-422.57335328,0.00038,2]
[312941178,1706473845194,-332.28537817,0.00038,2]
[312941179,1706473845209,-896.84790023,0.00038,2]
[312941180,1706473845221,-763.60893783,0.00038,2]
[312941181,1706473845234,-1875.36299203,0.00038,2]
[312941182,1706473845249,-2408.043014,0.00038,2]
[312941183,1706473845260,-5425.33852606,0.00038,2]
[312941184,1706473845272,-5608.36949611,0.00038,2]
[312941185,1706473845283,-3077.6682786,0.00038,2]
[312941186,1706473845304,-712.29205035,0.00038,2]
[312941187,1706473845315,-1135.47715258,0.00038,2]
[312941188,1706473845329,-508.76,0.00038,2]
[312941189,1706473845341,-975.445154,0.00038,2]
[312941191,1706473845352,-389.7985259,0.00038,2]
[312941211,1706473845628,-230.4528915,0.00027396,2]
[312941212,1706473845638,-838.1604579,0.00037233,2]
[312941213,1706473845647,-150.0,0.00037393,2]
[312941214,1706473845655,-2026.5907304,0.00038,2]
[312941215,1706473845847,-260.8000005,0.00038,2]
[312941216,1706473891169,155.0,0.0002,2]
[312941230,1706475031812,-709.4372165,0.00022396,2]
[312941231,1706475031824,-429.54172356,0.00022396,2]
[312941232,1706475031833,-1444.68098276,0.00022397,2]
[312941233,1706475031848,-1526.63301724,0.00022397,2]
[312941234,1706475031859,-785.06698276,0.00022499,2]
[312941235,1706475031871,-1553.53575242,0.00022499,2]
[312941236,1706475031882,-471.07573653,0.00022499,2]
[312941237,1706475031907,-980.60879457,0.00022499,2]
[312941238,1706475031921,-4605.41218789,0.00022499,2]
[312941248,1706475037691,-283.191,0.00022499,2]
[312941249,1706475037904,-1076.53554583,0.00022499,2]
[312941250,1706475037914,-500.0,0.00022499,2]
[312941251,1706475037923,-155.0,0.00024,2]
[312941252,1706475037933,-180.08773099,0.00024999,2]
[312941253,1706475037942,-1903.74995284,0.00025,2]
[312941254,1706475037951,-1587.22750165,0.00027992,2]
[312941255,1706475037961,-935.55189282,0.00027993,2]
[312941256,1706475037970,-690.39351064,0.00028,2]
[312941257,1706475037979,-228.45,0.00028169,2]
[312941258,1706475037989,-250.0,0.00028387,2]
[312941259,1706475037998,-404.62,0.00028407,2]
[312941260,1706475038007,-1000.0,0.00028477,2]
[312941261,1706475038016,-2092.2,0.00028649,2]
[312941262,1706475038026,-162.45,0.00028749,10]
[312941263,1706475038035,-171.0,0.00028749,2]
[312941264,1706475038044,-3296.0,0.000288,2]
[312941265,1706475038053,-1975.0,0.000288,2]
[312941266,1706475038062,-163.16,0.00028802,2]
[312941267,1706475038072,-2500.0,0.00028821,3]
[312941268,1706475038081,-1000.0,0.00029126,2]
[312941269,1706475038090,-1095.53,0.00029141,2]
[312941270,1706475038100,-4666.43,0.00029228,2]
[312941271,1706475038110,-169.49,0.0002928,2]
[312941272,1706475038119,-150.0,0.00029475,2]
[312941273,1706475038129,-163.16,0.00029552,2]
[312941274,1706475038138,-2000.0,0.00029606,2]
[312941275,1706475038148,-169.49,0.0002966,2]
[312941276,1706475038157,-250.0,0.000297,2]
[312941277,1706475038167,-175.84884344,0.000298,2]
[312941278,1706475038176,-2119.732,0.000298,2]
[312941279,1706475038186,-1711.80569067,0.0002989,2]
[312941280,1706475038195,-23900.0,0.00029896,2]
[312941281,1706475038204,-259.2562,0.000299,2]
[312941282,1706475038214,-17371.60109283,0.000299,2]
[312941283,1706475038226,-63767.32310717,0.000299,2]
[312941284,1706475038235,-216.92747266,0.0002999,2]
[312941285,1706475038245,-172.01115156,0.00029999,2]
[312941286,1706475038254,-447.24480755,0.0003,4]
[312941287,1706475038264,-3982.48656513,0.0003,2]
[312941288,1706475038275,-96.6453718,0.0003,2]
[312941289,1706475038284,-2097.92923637,0.0003,2]
[312941290,1706475038293,-19074.61386244,0.0003,4]
[312941291,1706475038302,-110788.43351165,0.0003,4]
[312941292,1706475038312,-3950.36494606,0.0003,4]
[312941293,1706475038324,-948.19036636,0.0003,4]
[312941294,1706475038335,-3963.68761418,0.0003,4]
[312941295,1706475038345,-224.03094781,0.0003,4]
[312941298,1706475040231,-29388.7594,0.0003,4]
[312941299,1706475040245,-663.88287981,0.0003,4]
[312941300,1706475040258,-11922.928,0.0003,4]
[312941345,1706475042787,-443.052,0.0003,4]
[312941346,1706475042803,-1319.80625231,0.0003,4]
[312941347,1706475042815,-1669.48223906,0.0003,4]
[312941348,1706475042830,-3950.0,0.0003,4]
[312941349,1706475042842,-11230.11848998,0.0003,4]
[312941350,1706475042854,-750.0,0.0003,4]
[312941351,1706475042878,-536.28001313,0.0003,4]
[312941352,1706475042890,-428.29488974,0.0003,4]
[312941353,1706475042902,-841.0402,0.0003,4]
[312941354,1706475042954,-22260.26349022,0.0003,4]
[312941355,1706475042965,-302.23,0.0003,4]
[312941356,1706475042977,-300.1,0.0003,4]
[312941357,1706475042990,-301.132,0.0003,4]
[312941358,1706475043002,-274.264,0.0003,4]
[312941359,1706475043014,-309.865,0.0003,4]
[312941360,1706475043026,-513.81121559,0.0003,4]
[312941361,1706475043039,-390.60683015,0.0003,4]
[312941362,1706475043050,-140150.75415254,0.0003,4]
[312941405,1706475045752,-458.36101863,0.00029999,2]
[312941407,1706475045762,-16284.37260247,0.0003,4]
[312941413,1706475045805,-4190.10000001,0.0003,4]
[312941426,1706475045915,-838.2339049,0.0003,4]
[312941433,1706475045970,-608.58737114,0.0003,4]
[312941440,1706475046030,-59522.19061809,0.0003,4]
[312941442,1706475046040,-400.00707754,0.0003,4]
[312941444,1706475046050,-169.49,0.00030041,2]
[312941446,1706475046059,-789.73946399,0.00030219,2]
[312941523,1706475111933,967.00042652,0.00021,4]
[312941524,1706475119941,1080.47931548,0.0001,3]
[312941525,1706475119965,5630.01920677,0.0001,3]
[312941527,1706475283835,362.36600661,0.00022995,3]
[312941542,1706475356480,429.03656491,0.00022995,3]
[312941548,1706475431014,373.11240968,0.00022995,3]
[312941551,1706475566255,436.38,0.00020263,2]
[312941552,1706475723677,781.06,0.00021542,2]
[312941556,1706475826359,1590.73,0.00021918,3]
[312941565,1706475898242,171.0,0.00021516,2]
[312941566,1706475900372,194.51,0.00021517,2]
[312941569,1706475916099,2706.11040838,0.00021515,2]
[312941573,1706475947547,161.20211687,0.00022896,3]
[312941577,1706475983956,800.0,0.00021457,2]
[312941581,1706476010449,414.56,0.00019531,2]
[312941583,1706476043140,2000.0,0.00021436,2]
[312941589,1706476127861,23900.0,0.00021466,2]
[312941592,1706476159104,-155.0,0.00021636,2]
[312941593,1706476159125,-385.11059656,0.00021636,2]
[312941594,1706476159145,-155.0,0.00021637,2]
[312941595,1706476159166,-414.56,0.00021794,2]
[312941596,1706476159186,-163.06984124,0.00021899,2]
[312941597,1706476159205,-1547.72668293,0.000219,2]
[312941598,1706476159225,-150.79,0.00021916,2]
[312941599,1706476159245,-121.31787927,0.00021916,2]
[312941600,1706476167506,182.13495625,0.00022797,3]
[312941633,1706476232089,-28.68212073,0.00021916,2]
[312941634,1706476232099,-19037.90879463,0.00021917,2]
[312941635,1706476232108,-250.0,0.00021918,2]
[312941636,1706476232117,-712.95,0.00021918,2]
[312941637,1706476232126,-150.99,0.00021998,2]
[312941638,1706476232136,-549.66,0.00021998,2]
[312941639,1706476232145,-499.99,0.00021998,2]
[312941640,1706476232155,-250.0,0.00022,2]
[312941642,1706476232165,-150.0,0.00022,2]
[312941644,1706476232174,-352.39,0.00022,2]
[312941646,1706476232184,-150.79,0.00022011,2]
[312941647,1706476232193,-168.94,0.00022047,2]
[312941648,1706476232202,-2359.30020477,0.00022075,2]
[312941649,1706476232211,-150.79,0.00022106,2]
[312941650,1706476232220,-557.15402815,0.0002214,2]
[312941651,1706476232230,-436.36,0.0002214,2]
[312941652,1706476232239,-1404.17,0.0002214,2]
[312941653,1706476232248,-150.79,0.00022201,2]
[312941654,1706476232258,-163.06984124,0.00022233,2]
[312941655,1706476232268,-200.0,0.00022269,2]
[312941656,1706476232279,-253.62615809,0.00022274,2]
[312941657,1706476232289,-1993.49,0.00022274,2]
[312941658,1706476232298,-150.79,0.00022297,2]
[312941659,1706476232308,-150.79,0.00022392,2]
[312941660,1706476232317,-150.79,0.00022487,2]
[312941661,1706476232326,-150.0,0.00022548,2]
[312941662,1706476232335,-163.06984124,0.00022566,2]
[312941663,1706476232345,-150.79,0.00022582,2]
[312941664,1706476232354,-150.79,0.00022677,2]
[312941665,1706476232363,-150.79,0.00022772,2]
[312941666,1706476232374,-1550.8018,0.00022797,2]
[312941667,1706476232383,-4954.9037,0.00022797,2]
[312941668,1706476232393,-2428.9975,0.00022797,2]
[312941669,1706476232402,-762.1725,0.000228,2]
[312941670,1706476232411,-2500.0,0.000228,2]
[312941671,1706476232420,-150.79,0.00022868,2]
[312941672,1706476232429,-194.95440246,0.00022895,2]
[312941673,1706476232438,-155.27767332,0.00022895,2]
[312941674,1706476232447,-73533.3799,0.00022897,2]
[312941675,1706476232456,-397.8618,0.00022897,2]
[312941676,1706476232465,-791.6807,0.00022897,2]
[312941677,1706476232474,-26136.0222,0.00022897,2]
[312941678,1706476232484,-69937.6037,0.000229,2]
[312941679,1706476232493,-169.31838675,0.000229,2]
[312941680,1706476232502,-152.57056866,0.000229,2]
[312941681,1706476232511,-163.06984124,0.000229,2]
[312941682,1706476232521,-896.30525204,0.000229,2]
[312941683,1706476232530,-275.8930555,0.000229,2]
[312941684,1706476232539,-1000.8078816,0.000229,2]
[312941685,1706476232548,-2098.7144392,0.000229,2]
[312941686,1706476232557,-208.33122631,0.000229,2]
[312941687,1706476232567,-160.67749252,0.000229,2]
[312941688,1706476232576,-567.21016802,0.000229,2]
[312941689,1706476232585,-567.210168,0.0002291,2]
[312941690,1706476232594,-567.210168,0.0002292,2]
[312941691,1706476232604,-150.79,0.00022963,2]
[312941692,1706476232615,-361.54578775,0.0002299,2]
[312941693,1706476232626,-361.54578775,0.0002299,2]
[312941694,1706476232635,-361.54578775,0.0002299,2]
[312941695,1706476232645,-304.08770656,0.00022995,2]
[312941696,1706476232655,-3624.62490428,0.00022996,2]
[312941697,1706476232751,-520.35516626,0.00022996,2]
[312941698,1706476232761,-729.64483374,0.00022997,2]
[312941699,1706476232782,-449.11577864,0.00022997,2]
[312941700,1706476232793,-370.93681553,0.00022997,2]
[312941701,1706476232803,-343.24758046,0.00022997,2]
[312941702,1706476232813,-1309.38656222,0.00022997,2]
[312941703,1706476232847,-547.03,0.00022997,2]
[312941704,1706476232860,-232.4651452,0.00022997,2]
[312941705,1706476232870,-11835.89237602,0.00022997,2]
[312941706,1706476232881,-777.0591856,0.00022997,2]
[312941707,1706476232900,-455.6,0.00021683,2]
[312941708,1706476232909,-157.23195705,0.00022997,2]
[312941709,1706476232923,-673.01,0.00022997,2]
[312941710,1706476232944,-468.15,0.00022997,2]
[312941711,1706476232957,-576.35796011,0.00022997,2]
[312941712,1706476232996,-1042.42601603,0.00022997,2]
[312941713,1706476233008,-1403.57398397,0.00022997,2]
[312941714,1706476233021,-792.99802951,0.00022997,2]
[312941723,1706476237908,-155.0,0.00021915,2]
[312941724,1706476237918,-382.39967944,0.00022898,2]
[312941725,1706476237927,-876.74818114,0.000229,2]
[312941726,1706476237939,-2010.73655341,0.000229,2]
[312941727,1706476237949,-597.69562865,0.00022997,2]
[312941728,1706476238071,-257523.10358903,0.00022997,2]
[312941729,1706476238080,-286.78293325,0.00022998,2]
[312941730,1706476238090,-1709.96186533,0.00022998,2]
[312941731,1706476238099,-158.86466524,0.00022998,2]
[312941732,1706476238108,-310.42145107,0.00022998,2]
[312941733,1706476238118,-1050.80754485,0.00022998,2]
[312941734,1706476238127,-400.40072411,0.00022998,2]
[312941735,1706476238137,-22760.38758408,0.00022998,2]
[312941736,1706476238146,-164.39591223,0.00022998,2]
[312941737,1706476238155,-2579.08840316,0.00022998,2]
[312941738,1706476238164,-549.18384813,0.00022998,2]
[312941739,1706476238173,-516.75299771,0.00022999,2]
[312941740,1706476238182,-473.62844747,0.00022999,2]
[312941741,1706476238191,-329.46360402,0.00022999,2]
[312941742,1706476238201,-152.00489672,0.00022999,2]
[312941743,1706476238209,-503.24593399,0.00022999,2]
[312941744,1706476238219,-2548250.09398542,0.00023,2]
[312941745,1706476238227,-689392.20829326,0.00023,2]
[312941746,1706476238239,-2396671.06470943,0.00023,2]
[312941747,1706476238249,-289.87,0.0002302,2]
[312941748,1706476238258,-150.79,0.00023058,2]
[312941749,1706476238267,-347.73672192,0.0002313,2]
[312941750,1706476238276,-455.6,0.00023327,2]
[312941751,1706476238285,-163.95,0.00023468,2]
[312941755,1706476238330,-201.54460435,0.00024,2]
[312941756,1706476238341,-414.56,0.00024058,2]
[312941757,1706476238350,-263.94731272,0.000241,2]
[312941758,1706476238359,-210.0,0.00024107,2]
[312941759,1706476238369,-800.0,0.00024139,2]
[312941760,1706476238378,-896.30525204,0.00024264,2]
[312941761,1706476238387,-2630.21,0.00024384,2]
[312941762,1706476238396,-3888.69,0.00024384,2]
[312941763,1706476238406,-156.46667678,0.00024548,2]
[312941764,1706476238415,-209.10730202,0.00024548,2]
[312941765,1706476238424,-156.46667678,0.00024548,2]
[312941766,1706476238435,-209.10730202,0.00024548,2]
[312941767,1706476238445,-156.46667678,0.00024548,2]
[312941768,1706476238454,-209.10730202,0.00024548,2]
[312941769,1706476238463,-250.0,0.00024658,2]
[312941770,1706476238472,-455.6,0.00024971,2]
[312941771,1706476238481,-1251.73070518,0.00025,2]
[312941772,1706476238490,-167.72726834,0.00025,2]
[312941773,1706476238499,-202.44241992,0.00025,2]
[312941774,1706476238509,-158.56574006,0.00025,2]
[312941775,1706476238518,-935.55189282,0.00025,2]
[312941776,1706476238527,-1903.74995284,0.00025,2]
[312941777,1706476238536,-1587.22750165,0.00025,2]
[312941778,1706476238546,-200.0,0.00025053,2]
[312941779,1706476238556,-201.8250984,0.000253,2]
[312941780,1706476238565,-896.30525204,0.00025627,2]
[312941781,1706476238574,-171.0,0.00025819,2]
[312941782,1706476238583,-150.0,0.00026,2]
[312941783,1706476238592,-150.0,0.00026079,2]
[312941784,1706476238602,-800.0,0.00026301,2]
[312941785,1706476238611,-414.56,0.00026322,2]
[312941786,1706476238620,-455.6,0.00026615,2]
[312941787,1706476238629,-800.0,0.00026822,2]
[312941788,1706476238639,-896.30525204,0.00026991,2]
[312941789,1706476238649,-417.60997134,0.00027,2]
[312941790,1706476238659,-152.57056863,0.00027124,2]
[312941791,1706476238668,-155.0,0.00027397,2]
[312941792,1706476238678,-3000.0,0.00027397,2]
[312941793,1706476238688,-3000.0,0.00027397,2]
[312941794,1706476238697,-3000.0,0.00027397,2]
[312941795,1706476238706,-3000.0,0.00027397,2]
[312941796,1706476238716,-3000.0,0.00027397,2]
[312941797,1706476238725,-3078.54113967,0.00027397,2]
[312941798,1706476238734,-365.45,0.00027397,2]
[312941799,1706476238744,-299.01,0.00027397,2]
[312941800,1706476238755,-164.45,0.00027397,2]
[312941801,1706476238764,-164.45,0.00027601,2]